[Event "Early-Titled-Tuesday-Blitz-October-10-2023"]
[Site "Chess.com"]
[Date "2023.10.10"]
[Round "2"]
[White "Zhani-Z"]
[Black "kuzol"]
[Result "1-0"]
[WhiteElo "2202"]
[BlackElo "2430"]
[TimeControl "180+1"]
[EndTime "8:17:34 PDT"]
[Termination "Zhani-Z won by resignation"]

1. e4 {[%clk 0:03:00.9]} 1... e6 {[%clk 0:02:59]} 2. d4 {[%clk 0:03:00.1]} 2...
d5 {[%clk 0:02:58.7]} 3. e5 {[%clk 0:03:01]} 3... c5 {[%clk 0:02:58.2]} 4. c3
{[%clk 0:03:01.6]} 4... Nc6 {[%clk 0:02:58.4]} 5. Nf3 {[%clk 0:02:54.4]} 5...
Bd7 {[%clk 0:02:58.1]} 6. Bd3 {[%clk 0:02:52]} 6... Qb6 {[%clk 0:02:56.5]} 7.
O-O {[%clk 0:02:49]} 7... cxd4 {[%clk 0:02:54.4]} 8. Re1 {[%clk 0:02:47.4]} 8...
Rc8 {[%clk 0:02:37.7]} 9. Nbd2 {[%clk 0:02:44.7]} 9... dxc3 {[%clk 0:02:36.4]}
10. bxc3 {[%clk 0:02:45.6]} 10... Na5 {[%clk 0:02:31]} 11. Rb1 {[%clk
0:02:40.2]} 11... Qc7 {[%clk 0:02:31]} 12. c4 {[%clk 0:02:38.3]} 12... dxc4
{[%clk 0:02:26.1]} 13. Bc2 {[%clk 0:02:38.4]} 13... b5 {[%clk 0:02:15.6]} 14.
Ng5 {[%clk 0:02:26.2]} 14... Nh6 {[%clk 0:02:03.9]} 15. Nxh7 {[%clk 0:02:12.6]}
15... Bc5 {[%clk 0:01:55.7]} 16. Ne4 {[%clk 0:02:00.7]} 16... Nf5 {[%clk
0:01:25.1]} 17. Nhf6+ {[%clk 0:01:26.1]} 17... gxf6 {[%clk 0:01:22.3]} 18. Nxf6+
{[%clk 0:01:24.5]} 18... Kd8 {[%clk 0:01:13.8]} 19. Bxf5 {[%clk 0:01:10.6]}
19... exf5 {[%clk 0:01:02.7]} 20. Bg5 {[%clk 0:01:08.7]} 20... Be7 {[%clk
0:01:01.9]} 21. Nd5 {[%clk 0:01:04]} 21... Bxg5 {[%clk 0:00:50.8]} 22. Nxc7
{[%clk 0:01:01.4]} 22... Rxc7 {[%clk 0:00:51.3]} 23. e6 {[%clk 0:00:49]} 23...
fxe6 {[%clk 0:00:50.4]} 24. Rxe6 {[%clk 0:00:49.9]} 24... Kc8 {[%clk 0:00:44.8]}
25. Ra6 {[%clk 0:00:42.1]} 25... c3 {[%clk 0:00:38]} 26. Qc2 {[%clk 0:00:31.8]}
26... Bc6 {[%clk 0:00:21.5]} 27. Qxc3 {[%clk 0:00:17.2]} 27... Rg8 {[%clk
0:00:21.1]} 28. Qxa5 {[%clk 0:00:15.4]} 28... Bd8 {[%clk 0:00:21.3]} 29. Rxc6
{[%clk 0:00:10.9]} 29... Rxc6 {[%clk 0:00:19.8]} 30. Qxb5 {[%clk 0:00:11.3]}
30... Rb6 {[%clk 0:00:16.4]} 31. Qc4+ {[%clk 0:00:11.4]} 31... Kb8 {[%clk
0:00:16.5]} 32. Rxb6+ {[%clk 0:00:12.1]} 1-0

[Event "Early-Titled-Tuesday-Blitz-October-10-2023"]
[Site "Chess.com"]
[Date "2023.10.10"]
[Round "2"]
[White "vladoboch"]
[Black "bennyficial"]
[Result "1-0"]
[WhiteElo "2453"]
[BlackElo "2135"]
[TimeControl "180+1"]
[EndTime "8:17:35 PDT"]
[Termination "vladoboch won on time"]

1. e4 {[%clk 0:03:00.9]} 1... c5 {[%clk 0:03:00.1]} 2. Nf3 {[%clk 0:02:59.8]}
2... g6 {[%clk 0:03:00.3]} 3. d4 {[%clk 0:02:58.3]} 3... cxd4 {[%clk 0:03:01.2]}
4. Nxd4 {[%clk 0:02:59.1]} 4... Nf6 {[%clk 0:02:59.4]} 5. e5 {[%clk 0:02:57.7]}
5... Qa5+ {[%clk 0:02:56.7]} 6. Nc3 {[%clk 0:02:48.9]} 6... Qxe5+ {[%clk
0:02:56.3]} 7. Be2 {[%clk 0:02:49.7]} 7... Nc6 {[%clk 0:02:49.9]} 8. Be3 {[%clk
0:02:49.6]} 8... Bg7 {[%clk 0:02:49.1]} 9. Qd2 {[%clk 0:02:45.3]} 9... Ne4
{[%clk 0:02:43.3]} 10. Nxe4 {[%clk 0:02:42.4]} 10... Qxe4 {[%clk 0:02:43]} 11.
Bf3 {[%clk 0:02:31]} 11... Qe5 {[%clk 0:02:32.8]} 12. c3 {[%clk 0:02:30.8]}
12... Nxd4 {[%clk 0:02:28.1]} 13. cxd4 {[%clk 0:02:30.6]} 13... Qb5 {[%clk
0:02:20.7]} 14. Be2 {[%clk 0:02:25]} 14... Qb6 {[%clk 0:02:10.8]} 15. O-O {[%clk
0:02:13.7]} 15... O-O {[%clk 0:02:05.7]} 16. Rac1 {[%clk 0:02:09]} 16... d5
{[%clk 0:02:00.3]} 17. Rc5 {[%clk 0:01:57]} 17... Rd8 {[%clk 0:01:38.1]} 18. Bf4
{[%clk 0:01:54]} 18... Qf6 {[%clk 0:01:27.7]} 19. Be5 {[%clk 0:01:26]} 19... Qf5
{[%clk 0:01:27.1]} 20. Bc7 {[%clk 0:01:24.3]} 20... Rf8 {[%clk 0:01:13.8]} 21.
h3 {[%clk 0:01:21.5]} 21... Qd7 {[%clk 0:00:56.1]} 22. Bf4 {[%clk 0:01:18.7]}
22... b6 {[%clk 0:00:45.3]} 23. Rc7 {[%clk 0:01:16.7]} 23... Qa4 {[%clk
0:00:36.4]} 24. b4 {[%clk 0:01:15.3]} 24... Ba6 {[%clk 0:00:25]} 25. Bxa6 {[%clk
0:01:06.6]} 25... Qxa6 {[%clk 0:00:25.9]} 26. Rxe7 {[%clk 0:01:06.9]} 26... Qc4
{[%clk 0:00:24.6]} 27. Be5 {[%clk 0:01:00.1]} 27... Rfe8 {[%clk 0:00:17.2]} 28.
Rc7 {[%clk 0:00:53.2]} 28... Qb5 {[%clk 0:00:12.9]} 29. Qf4 {[%clk 0:00:49.3]}
29... Rf8 {[%clk 0:00:07]} 30. Bd6 {[%clk 0:00:47.8]} 30... Qd3 {[%clk
0:00:02.9]} 31. Bxf8 {[%clk 0:00:46.7]} 31... Rxf8 {[%clk 0:00:03.8]} 32. Re1
{[%clk 0:00:45.8]} 32... Bxd4 {[%clk 0:00:03.7]} 33. Ree7 {[%clk 0:00:38.2]}
33... Qd1+ {[%clk 0:00:03.3]} 34. Kh2 {[%clk 0:00:38.6]} 34... Qa1 {[%clk
0:00:03.3]} 35. g3 {[%clk 0:00:32.2]} 35... Bf6 {[%clk 0:00:03.4]} 36. Re2
{[%clk 0:00:23.6]} 36... Kg7 {[%clk 0:00:03.1]} 37. h4 {[%clk 0:00:21.6]} 37...
h5 {[%clk 0:00:01.7]} 38. Rc1 {[%clk 0:00:21.2]} 1-0

[Event "Early-Titled-Tuesday-Blitz-October-10-2023"]
[Site "Chess.com"]
[Date "2023.10.10"]
[Round "2"]
[White "MKlose11"]
[Black "JimDiGrease"]
[Result "0-1"]
[WhiteElo "2605"]
[BlackElo "2929"]
[TimeControl "180+1"]
[EndTime "8:17:38 PDT"]
[Termination "JimDiGrease won by resignation"]

1. e4 {[%clk 0:03:00]} 1... c5 {[%clk 0:03:00.1]} 2. Nc3 {[%clk 0:02:47.7]} 2...
e6 {[%clk 0:03:00.4]} 3. g3 {[%clk 0:02:48.6]} 3... d5 {[%clk 0:02:56.6]} 4. Bg2
{[%clk 0:02:47.7]} 4... Nf6 {[%clk 0:02:55.9]} 5. exd5 {[%clk 0:02:43]} 5...
exd5 {[%clk 0:02:55.8]} 6. Nge2 {[%clk 0:02:43.4]} 6... Nc6 {[%clk 0:02:55.3]}
7. O-O {[%clk 0:02:39.7]} 7... Be7 {[%clk 0:02:29.5]} 8. d4 {[%clk 0:02:39.3]}
8... cxd4 {[%clk 0:02:14.7]} 9. Nxd4 {[%clk 0:02:38.9]} 9... O-O {[%clk
0:02:15.4]} 10. Bg5 {[%clk 0:02:36.4]} 10... h6 {[%clk 0:02:06.2]} 11. Bf4
{[%clk 0:02:26.9]} 11... Bg4 {[%clk 0:01:50.6]} 12. Qd2 {[%clk 0:02:26.4]} 12...
Qb6 {[%clk 0:01:19.2]} 13. Nb3 {[%clk 0:02:07.2]} 13... d4 {[%clk 0:01:06.7]}
14. Ne4 {[%clk 0:02:06.4]} 14... Rad8 {[%clk 0:01:00.7]} 15. Nxf6+ {[%clk
0:02:01.3]} 15... Bxf6 {[%clk 0:01:01.6]} 16. Be4 {[%clk 0:01:24.8]} 16... g5
{[%clk 0:00:55.3]} 17. Qc1 {[%clk 0:01:10.5]} 17... Bh3 {[%clk 0:00:29.7]} 18.
Bd2 {[%clk 0:01:06.7]} 18... Bxf1 {[%clk 0:00:29.7]} 19. Qxf1 {[%clk 0:01:07.6]}
19... Bg7 {[%clk 0:00:26.9]} 20. Qh3 {[%clk 0:01:05.8]} 20... Qb5 {[%clk
0:00:22.9]} 21. Bd3 {[%clk 0:01:03.3]} 21... Qd5 {[%clk 0:00:22]} 22. Qh5 {[%clk
0:00:38.5]} 22... Ne5 {[%clk 0:00:19.4]} 23. h4 {[%clk 0:00:27.7]} 23... Nf3+
{[%clk 0:00:10.6]} 24. Kf1 {[%clk 0:00:25.9]} 24... Nxd2+ {[%clk 0:00:06.6]} 25.
Nxd2 {[%clk 0:00:25.6]} 25... Qh1+ {[%clk 0:00:06.9]} 26. Ke2 {[%clk 0:00:25.8]}
26... Rde8+ {[%clk 0:00:07.2]} 27. Ne4 {[%clk 0:00:22.6]} 27... Rxe4+ {[%clk
0:00:07.4]} 28. Bxe4 {[%clk 0:00:22.4]} 28... Qxe4+ {[%clk 0:00:08.3]} 29. Kd2
{[%clk 0:00:21.8]} 29... Qf5 {[%clk 0:00:09]} 30. hxg5 {[%clk 0:00:18.4]} 30...
Qxf2+ {[%clk 0:00:08.5]} 31. Kd3 {[%clk 0:00:18.2]} 31... Qf5+ {[%clk
0:00:08.8]} 32. Kd2 {[%clk 0:00:18]} 32... Rc8 {[%clk 0:00:07.8]} 0-1

[Event "Early-Titled-Tuesday-Blitz-October-10-2023"]
[Site "Chess.com"]
[Date "2023.10.10"]
[Round "2"]
[White "Karttunen"]
[Black "soumeow"]
[Result "1-0"]
[WhiteElo "2656"]
[BlackElo "2308"]
[TimeControl "180+1"]
[EndTime "8:17:38 PDT"]
[Termination "Karttunen won by resignation"]

1. e4 {[%clk 0:03:00.9]} 1... c5 {[%clk 0:02:59.6]} 2. Nf3 {[%clk 0:03:00.5]}
2... Nc6 {[%clk 0:02:59.8]} 3. Bb5 {[%clk 0:02:59.9]} 3... g6 {[%clk 0:02:59.3]}
4. Bxc6 {[%clk 0:02:57.4]} 4... dxc6 {[%clk 0:03:00.2]} 5. d3 {[%clk 0:02:55.9]}
5... Bg7 {[%clk 0:02:56.4]} 6. h3 {[%clk 0:02:55.9]} 6... Nf6 {[%clk 0:02:53]}
7. Be3 {[%clk 0:02:55.4]} 7... Nd7 {[%clk 0:02:51.7]} 8. Nc3 {[%clk 0:02:51.6]}
8... e5 {[%clk 0:02:49]} 9. Qd2 {[%clk 0:02:49.4]} 9... h6 {[%clk 0:02:48.9]}
10. Nh2 {[%clk 0:02:35.6]} 10... b6 {[%clk 0:02:43.9]} 11. f4 {[%clk 0:02:22.3]}
11... exf4 {[%clk 0:02:42.4]} 12. Bxf4 {[%clk 0:02:22.2]} 12... Nf8 {[%clk
0:02:40.7]} 13. O-O {[%clk 0:02:12.2]} 13... Ne6 {[%clk 0:02:40.3]} 14. Be3
{[%clk 0:02:04.5]} 14... Nd4 {[%clk 0:02:33.6]} 15. Kh1 {[%clk 0:01:39.7]} 15...
Be6 {[%clk 0:02:28.1]} 16. a3 {[%clk 0:01:34.7]} 16... Qe7 {[%clk 0:02:21]} 17.
Rab1 {[%clk 0:01:27.5]} 17... O-O-O {[%clk 0:02:16.5]} 18. b4 {[%clk 0:01:25.3]}
18... c4 {[%clk 0:02:15.1]} 19. a4 {[%clk 0:00:40.1]} 19... g5 {[%clk
0:02:04.1]} 20. b5 {[%clk 0:00:33.4]} 20... c5 {[%clk 0:01:58]} 21. a5 {[%clk
0:00:33]} 21... Kb7 {[%clk 0:01:51.9]} 22. Qf2 {[%clk 0:00:26.7]} 22... Rhe8
{[%clk 0:01:25.5]} 23. dxc4 {[%clk 0:00:21.6]} 23... Bxc4 {[%clk 0:01:23.7]} 24.
Rfe1 {[%clk 0:00:20.3]} 24... Qc7 {[%clk 0:00:53.5]} 25. Ng4 {[%clk 0:00:17.2]}
25... Re6 {[%clk 0:00:33.3]} 26. Nd5 {[%clk 0:00:16.5]} 26... Bxd5 {[%clk
0:00:30.7]} 27. exd5 {[%clk 0:00:17.4]} 27... Rxd5 {[%clk 0:00:30.9]} 28. c3
{[%clk 0:00:17.5]} 28... Nf5 {[%clk 0:00:27.2]} 29. Qf3 {[%clk 0:00:13.6]} 29...
Re4 {[%clk 0:00:16.9]} 30. Bf2 {[%clk 0:00:11.3]} 30... Rxe1+ {[%clk 0:00:12.5]}
31. Rxe1 {[%clk 0:00:10.8]} 31... Qd6 {[%clk 0:00:09]} 32. c4 {[%clk 0:00:11]}
1-0

[Event "Early-Titled-Tuesday-Blitz-October-10-2023"]
[Site "Chess.com"]
[Date "2023.10.10"]
[Round "2"]
[White "matagordo"]
[Black "Barmen_EV"]
[Result "0-1"]
[WhiteElo "2216"]
[BlackElo "2479"]
[TimeControl "180+1"]
[EndTime "8:17:38 PDT"]
[Termination "Barmen_EV won on time"]

1. d4 {[%clk 0:03:00.9]} 1... Nf6 {[%clk 0:02:58.3]} 2. Bf4 {[%clk 0:03:00.7]}
2... g6 {[%clk 0:02:57]} 3. Nc3 {[%clk 0:03:00.6]} 3... Bg7 {[%clk 0:02:57.6]}
4. e4 {[%clk 0:03:01.2]} 4... d6 {[%clk 0:02:57.4]} 5. Qd2 {[%clk 0:03:02]} 5...
O-O {[%clk 0:02:56.5]} 6. O-O-O {[%clk 0:03:02.7]} 6... Nc6 {[%clk 0:02:51.7]}
7. f3 {[%clk 0:03:01.6]} 7... a6 {[%clk 0:02:46.5]} 8. Bh6 {[%clk 0:03:01.3]}
8... e5 {[%clk 0:02:39.1]} 9. d5 {[%clk 0:02:55.3]} 9... Nb8 {[%clk 0:02:38.5]}
10. h4 {[%clk 0:02:55.2]} 10... Nh5 {[%clk 0:02:17.8]} 11. Bxg7 {[%clk
0:02:51.5]} 11... Kxg7 {[%clk 0:02:18.7]} 12. Nge2 {[%clk 0:02:45.2]} 12... Nd7
{[%clk 0:02:04.1]} 13. g4 {[%clk 0:02:45.2]} 13... Nf4 {[%clk 0:02:02.4]} 14.
Nxf4 {[%clk 0:02:45.5]} 14... exf4 {[%clk 0:02:03]} 15. Qxf4 {[%clk 0:02:45.9]}
15... Ne5 {[%clk 0:02:03.7]} 16. h5 {[%clk 0:02:39.3]} 16... g5 {[%clk
0:02:01.1]} 17. h6+ {[%clk 0:02:39.6]} 17... Kg8 {[%clk 0:01:54]} 18. Qe3 {[%clk
0:02:33.1]} 18... Qf6 {[%clk 0:01:52.6]} 19. Rh5 {[%clk 0:02:26.7]} 19... Nxf3
{[%clk 0:01:41.9]} 20. Be2 {[%clk 0:02:08.9]} 20... Bxg4 {[%clk 0:01:35]} 21.
Bxf3 {[%clk 0:02:08.2]} 21... Bxh5 {[%clk 0:01:34.8]} 22. Bxh5 {[%clk
0:02:07.9]} 22... Qxh6 {[%clk 0:01:31.6]} 23. Rg1 {[%clk 0:02:04.9]} 23... f6
{[%clk 0:01:22.4]} 24. Bg4 {[%clk 0:02:02.1]} 24... Rae8 {[%clk 0:01:21.9]} 25.
Ne2 {[%clk 0:01:59.6]} 25... f5 {[%clk 0:01:18.6]} 26. Bf3 {[%clk 0:01:44]}
26... Rf6 {[%clk 0:00:28.1]} 27. Rxg5+ {[%clk 0:01:39.1]} 27... Rg6 {[%clk
0:00:26.8]} 28. Rxg6+ {[%clk 0:01:24.5]} 28... Qxg6 {[%clk 0:00:27.6]} 29. Nf4
{[%clk 0:01:18.5]} 29... Qg5 {[%clk 0:00:27.9]} 30. Bh5 {[%clk 0:00:58.6]} 30...
Rxe4 {[%clk 0:00:24.8]} 31. Qa7 {[%clk 0:00:01.9]} 31... Qxf4+ {[%clk
0:00:23.2]} 32. Kd1 {[%clk 0:00:01.6]} 32... Qf1+ {[%clk 0:00:21.5]} 33. Kd2
{[%clk 0:00:01.9]} 33... Qe1+ {[%clk 0:00:22.1]} 34. Kd3 {[%clk 0:00:01.9]}
34... Qf1+ {[%clk 0:00:16.5]} 0-1

[Event "Early-Titled-Tuesday-Blitz-October-10-2023"]
[Site "Chess.com"]
[Date "2023.10.10"]
[Round "2"]
[White "AnaKuchava"]
[Black "savitha1030"]
[Result "1/2-1/2"]
[WhiteElo "2247"]
[BlackElo "2479"]
[TimeControl "180+1"]
[EndTime "8:17:39 PDT"]
[Termination "Game drawn by repetition"]

1. d4 {[%clk 0:03:00.9]} 1... Nf6 {[%clk 0:02:57.1]} 2. Nf3 {[%clk 0:03:00.5]}
2... c5 {[%clk 0:02:54.3]} 3. d5 {[%clk 0:02:55.9]} 3... g6 {[%clk 0:02:48.6]}
4. c4 {[%clk 0:02:54.9]} 4... Bg7 {[%clk 0:02:44.4]} 5. Nc3 {[%clk 0:02:53.7]}
5... O-O {[%clk 0:02:44.1]} 6. e4 {[%clk 0:02:53.3]} 6... d6 {[%clk 0:02:44.6]}
7. Bd3 {[%clk 0:02:52.6]} 7... e6 {[%clk 0:02:40.7]} 8. O-O {[%clk 0:02:50.4]}
8... exd5 {[%clk 0:02:40.8]} 9. cxd5 {[%clk 0:02:51.3]} 9... Nbd7 {[%clk
0:02:40]} 10. Bf4 {[%clk 0:02:45.5]} 10... Ne8 {[%clk 0:02:29.9]} 11. a4 {[%clk
0:02:38.9]} 11... Ne5 {[%clk 0:02:27]} 12. Nxe5 {[%clk 0:02:37.7]} 12... dxe5
{[%clk 0:02:27.9]} 13. Be3 {[%clk 0:02:37.2]} 13... Nd6 {[%clk 0:02:28.5]} 14.
Bxc5 {[%clk 0:02:36]} 14... f5 {[%clk 0:02:24]} 15. Nb5 {[%clk 0:02:22.8]} 15...
Rf6 {[%clk 0:01:04.3]} 16. Bxd6 {[%clk 0:02:10.8]} 16... Rxd6 {[%clk 0:01:05.2]}
17. Nxd6 {[%clk 0:02:11.2]} 17... Qxd6 {[%clk 0:01:06.1]} 18. Rc1 {[%clk
0:02:00.6]} 18... Bd7 {[%clk 0:01:04]} 19. Qb3 {[%clk 0:01:56.5]} 19... Rf8
{[%clk 0:00:58.1]} 20. Qxb7 {[%clk 0:01:51.4]} 20... fxe4 {[%clk 0:00:30.7]} 21.
Bxe4 {[%clk 0:01:46.6]} 21... Rf7 {[%clk 0:00:22.6]} 22. Qxa7 {[%clk 0:01:37.9]}
22... Bf8 {[%clk 0:00:21.2]} 23. a5 {[%clk 0:01:31.2]} 23... Bb5 {[%clk
0:00:19.6]} 24. Qb6 {[%clk 0:01:22.2]} 24... Qb4 {[%clk 0:00:18.7]} 25. Bd3
{[%clk 0:01:18.1]} 25... Bxd3 {[%clk 0:00:18]} 26. Qxb4 {[%clk 0:01:15.5]} 26...
Bxb4 {[%clk 0:00:18.9]} 27. Ra1 {[%clk 0:01:12.3]} 27... Bxf1 {[%clk 0:00:18.3]}
28. Kxf1 {[%clk 0:01:10.7]} 28... Ra7 {[%clk 0:00:18.3]} 29. a6 {[%clk
0:01:10.1]} 29... Kf7 {[%clk 0:00:19]} 30. Ra4 {[%clk 0:01:08.2]} 30... Bc5
{[%clk 0:00:18.6]} 31. b4 {[%clk 0:01:08.1]} 31... Bb6 {[%clk 0:00:19.2]} 32.
Ke2 {[%clk 0:01:08.1]} 32... Ke7 {[%clk 0:00:19.8]} 33. Kd3 {[%clk 0:01:08.4]}
33... Kd6 {[%clk 0:00:20.5]} 34. Kc4 {[%clk 0:00:35.4]} 34... Bxf2 {[%clk
0:00:19.6]} 35. Ra2 {[%clk 0:00:32.6]} 35... Bd4 {[%clk 0:00:18.8]} 36. b5
{[%clk 0:00:28.7]} 36... Rc7+ {[%clk 0:00:18.3]} 37. Kb4 {[%clk 0:00:27.8]}
37... Kxd5 {[%clk 0:00:18.3]} 38. Ka5 {[%clk 0:00:26.9]} 38... e4 {[%clk
0:00:15.5]} 39. b6 {[%clk 0:00:22.3]} 39... Rc5+ {[%clk 0:00:15.9]} 40. Kb4
{[%clk 0:00:21.8]} 40... Rc4+ {[%clk 0:00:16.1]} 41. Kb5 {[%clk 0:00:22.2]}
41... Rc5+ {[%clk 0:00:16]} 42. Kb4 {[%clk 0:00:22.3]} 42... Rc4+ {[%clk
0:00:16.3]} 43. Kb5 {[%clk 0:00:22.7]} 43... Rc5+ {[%clk 0:00:15.7]} 44. Kb4
{[%clk 0:00:23]} 1/2-1/2

[Event "Early-Titled-Tuesday-Blitz-October-10-2023"]
[Site "Chess.com"]
[Date "2023.10.10"]
[Round "2"]
[White "FrenchHarvey"]
[Black "stasOR4ik"]
[Result "0-1"]
[WhiteElo "2689"]
[BlackElo "2448"]
[TimeControl "180+1"]
[EndTime "8:17:40 PDT"]
[Termination "stasOR4ik won on time"]

1. e4 {[%clk 0:03:00.9]} 1... c6 {[%clk 0:02:59.6]} 2. Nf3 {[%clk 0:03:00]} 2...
d5 {[%clk 0:03:00.5]} 3. Nc3 {[%clk 0:03:00.4]} 3... dxe4 {[%clk 0:03:00.4]} 4.
Nxe4 {[%clk 0:03:00.5]} 4... Nf6 {[%clk 0:03:01.3]} 5. Qe2 {[%clk 0:02:59.4]}
5... Nxe4 {[%clk 0:03:01]} 6. Qxe4 {[%clk 0:03:00.3]} 6... Qd5 {[%clk
0:03:01.5]} 7. Qh4 {[%clk 0:03:00.3]} 7... Bf5 {[%clk 0:02:42.7]} 8. Bc4 {[%clk
0:02:56.8]} 8... Qa5 {[%clk 0:02:23.7]} 9. O-O {[%clk 0:02:54.8]} 9... e6 {[%clk
0:02:21.4]} 10. d3 {[%clk 0:02:35.8]} 10... Nd7 {[%clk 0:02:18.6]} 11. Bd2
{[%clk 0:02:29.3]} 11... Qc7 {[%clk 0:02:04.6]} 12. Nd4 {[%clk 0:02:23.4]} 12...
Be7 {[%clk 0:01:57.2]} 13. Qg3 {[%clk 0:02:10.4]} 13... Bd6 {[%clk 0:01:25.5]}
14. Qh4 {[%clk 0:02:08.7]} 14... Be7 {[%clk 0:01:19.7]} 15. Bg5 {[%clk 0:02:06]}
15... Bxg5 {[%clk 0:00:56.1]} 16. Qxg5 {[%clk 0:02:04.5]} 16... Bg6 {[%clk
0:00:52.9]} 17. Bxe6 {[%clk 0:01:55.1]} 17... fxe6 {[%clk 0:00:52.1]} 18. Nxe6
{[%clk 0:01:56]} 18... Qe5 {[%clk 0:00:51.7]} 19. Qg3 {[%clk 0:00:51.9]} 19...
Qxg3 {[%clk 0:00:31.5]} 20. fxg3 {[%clk 0:00:52.8]} 20... Ke7 {[%clk 0:00:25.8]}
21. Nxg7 {[%clk 0:00:52.1]} 21... Raf8 {[%clk 0:00:20.4]} 22. Rae1+ {[%clk
0:00:47.6]} 22... Kd6 {[%clk 0:00:20.3]} 23. g4 {[%clk 0:00:32]} 23... Rxf1+
{[%clk 0:00:18.2]} 24. Rxf1 {[%clk 0:00:32.9]} 24... Rf8 {[%clk 0:00:18.3]} 25.
Re1 {[%clk 0:00:26.8]} 25... Ne5 {[%clk 0:00:16.2]} 26. h3 {[%clk 0:00:26.6]}
26... Rf7 {[%clk 0:00:16]} 27. d4 {[%clk 0:00:24.1]} 27... Nc4 {[%clk 0:00:14]}
28. b3 {[%clk 0:00:19.3]} 28... Na3 {[%clk 0:00:10.7]} 29. Ne8+ {[%clk
0:00:06.4]} 29... Kd7 {[%clk 0:00:09.1]} 30. c4 {[%clk 0:00:07]} 30... Nc2
{[%clk 0:00:08.6]} 0-1

[Event "Early-Titled-Tuesday-Blitz-October-10-2023"]
[Site "Chess.com"]
[Date "2023.10.10"]
[Round "2"]
[White "Zheenbekov86"]
[Black "FischerKasparow"]
[Result "1-0"]
[WhiteElo "2455"]
[BlackElo "2135"]
[TimeControl "180+1"]
[EndTime "8:17:40 PDT"]
[Termination "Zheenbekov86 won on time"]

1. e4 {[%clk 0:03:00.7]} 1... c5 {[%clk 0:02:55.7]} 2. Nf3 {[%clk 0:03:00.3]}
2... d6 {[%clk 0:02:55.8]} 3. Bb5+ {[%clk 0:03:00.2]} 3... Bd7 {[%clk
0:02:54.5]} 4. Bxd7+ {[%clk 0:03:00.1]} 4... Qxd7 {[%clk 0:02:55.4]} 5. O-O
{[%clk 0:02:59.9]} 5... Nc6 {[%clk 0:02:55.5]} 6. c3 {[%clk 0:02:59.8]} 6... Nf6
{[%clk 0:02:53.8]} 7. Qe2 {[%clk 0:03:00]} 7... g6 {[%clk 0:02:52.6]} 8. d4
{[%clk 0:02:59.6]} 8... cxd4 {[%clk 0:02:52]} 9. cxd4 {[%clk 0:02:59.5]} 9...
Bg7 {[%clk 0:02:52.2]} 10. Nc3 {[%clk 0:02:59.9]} 10... O-O {[%clk 0:02:52]} 11.
Rd1 {[%clk 0:02:55.1]} 11... a6 {[%clk 0:02:40.9]} 12. e5 {[%clk 0:02:54.4]}
12... Ne8 {[%clk 0:02:39.6]} 13. h3 {[%clk 0:02:54.1]} 13... dxe5 {[%clk
0:02:29.6]} 14. dxe5 {[%clk 0:02:53.6]} 14... Qe6 {[%clk 0:02:26.5]} 15. Bf4
{[%clk 0:02:48.7]} 15... Nc7 {[%clk 0:02:24.1]} 16. Bg3 {[%clk 0:02:30.8]} 16...
Rfd8 {[%clk 0:02:23.9]} 17. Re1 {[%clk 0:02:30.5]} 17... Nd5 {[%clk 0:02:16.4]}
18. Ne4 {[%clk 0:02:29]} 18... Qf5 {[%clk 0:02:08.4]} 19. Nh4 {[%clk 0:02:01.2]}
19... Qc8 {[%clk 0:01:56.1]} 20. Nf3 {[%clk 0:01:58.5]} 20... Qf5 {[%clk
0:01:55.2]} 21. Rac1 {[%clk 0:01:57]} 21... Nf4 {[%clk 0:01:53.5]} 22. Bxf4
{[%clk 0:01:52.8]} 22... Qxf4 {[%clk 0:01:53.5]} 23. Nc5 {[%clk 0:01:51]} 23...
Qb4 {[%clk 0:01:10]} 24. a3 {[%clk 0:01:48.6]} 24... Qb6 {[%clk 0:01:08.3]} 25.
b4 {[%clk 0:01:45.6]} 25... e6 {[%clk 0:01:00.3]} 26. Qe4 {[%clk 0:01:40.1]}
26... Rac8 {[%clk 0:00:50.7]} 27. h4 {[%clk 0:01:28.9]} 27... a5 {[%clk
0:00:50.8]} 28. Rb1 {[%clk 0:01:18.7]} 28... axb4 {[%clk 0:00:49.1]} 29. axb4
{[%clk 0:01:18.9]} 29... Qb5 {[%clk 0:00:46.3]} 30. h5 {[%clk 0:01:14]} 30...
Rd5 {[%clk 0:00:45.5]} 31. Qf4 {[%clk 0:01:08.6]} 31... Rcd8 {[%clk 0:00:36]}
32. hxg6 {[%clk 0:01:08.2]} 32... hxg6 {[%clk 0:00:35.9]} 33. Ng5 {[%clk
0:01:07.2]} 33... Rf8 {[%clk 0:00:35.9]} 34. Qh4 {[%clk 0:01:07]} 34... Rfd8
{[%clk 0:00:28.1]} 35. Qh7+ {[%clk 0:01:06.8]} 35... Kf8 {[%clk 0:00:28.3]} 36.
Ncxe6+ {[%clk 0:01:07.3]} 36... fxe6 {[%clk 0:00:20.7]} 37. Nxe6+ {[%clk
0:01:07]} 37... Ke7 {[%clk 0:00:20.8]} 38. Nxg7 {[%clk 0:01:06.3]} 38... Rxe5
{[%clk 0:00:15.1]} 39. Qxg6 {[%clk 0:00:45.1]} 39... Rxe1+ {[%clk 0:00:06.8]}
40. Rxe1+ {[%clk 0:00:44.6]} 40... Kf8 {[%clk 0:00:07.7]} 41. Ne6+ {[%clk
0:00:42.5]} 41... Ke7 {[%clk 0:00:07.1]} 42. Nd4+ {[%clk 0:00:42.5]} 1-0